lending/lending_fUSD_20241025
["ID","MTS","AMOUNT","RATE_DAILY","PERIOD"]
[340818774,1729875044064,-500.0,0.00062488,120]
[340818775,1729875044073,-500.0,0.00062488,120]
[340818776,1729875044082,-665.16,0.00062488,120]
[340818777,1729875044091,-617.05045511,0.00062488,120]
[340818778,1729875044101,-662.81,0.00062488,120]
[340818779,1729875044110,-1058.15,0.00062488,120]
[340818780,1729875044119,-500.0,0.00062488,120]
[340818781,1729875044129,-593.32,0.00062488,120]
[340818782,1729875044139,-500.0,0.00062488,120]
[340818783,1729875044148,-952.39,0.00062488,120]
[340818784,1729875044157,-500.0,0.00062488,120]
[340818785,1729875044167,-500.0,0.00062488,120]
[340818786,1729875044177,-1172.63,0.00062488,4]
[340818787,1729875044186,-518.6,0.00062488,120]
[340818788,1729875044196,-1000.0,0.00062488,120]
[340818789,1729875044205,-500.0,0.00062488,120]
[340818790,1729875044214,-500.0,0.00062488,120]
[340818791,1729875044224,-684.79,0.00062488,120]
[340818792,1729875044234,-204.99785682,0.00062489,120]
[340818793,1729875044243,-500.0,0.00062489,120]
[340818794,1729875044253,-500.0,0.00062489,120]
[340818795,1729875044262,-313.17377684,0.00062489,120]
[340818796,1729875044272,-1716.01,0.00062489,120]
[340818797,1729875044282,-500.0,0.00062489,120]
[340818798,1729875044292,-589.43,0.00062489,120]
[340818799,1729875044302,-164.22215523,0.00062489,120]
[340818800,1729875044315,-335.77784477,0.00062489,120]
[340818801,1729875044324,-3440.33,0.00062489,120]
[340818802,1729875044334,-500.0,0.00062489,120]
[340818803,1729875044343,-840.51,0.00062489,120]
[340818804,1729875044352,-500.0,0.00062489,120]
[340818805,1729875044362,-500.0,0.00062489,120]
[340818806,1729875044370,-203.8147105,0.00062489,120]
[340818807,1729875044379,-685.91,0.00062489,120]
[340818808,1729875044389,-500.0,0.00062489,2]
[340818809,1729875044398,-500.0,0.00062489,120]
[340818810,1729875044407,-278.77264663,0.00062489,120]
[340818811,1729875044417,-10904.39766525,0.0006249,120]
[340818812,1729875044430,-10107.59623228,0.0006249,120]
[340818813,1729875044522,-1224.69759552,0.0006249,120]
[340818814,1729875044538,-2874.5562125,0.0006249,120]
[340818815,1729875044647,-288.563557,0.0006249,120]
[340818816,1729875044658,-2525.00000001,0.0006249,120]
[340818817,1729875044671,-5278.10713559,0.0006249,120]
[340818818,1729875044685,-74897.91326845,0.0006249,120]
[340818819,1729875044696,-500.0,0.0006249,120]
[340818820,1729875044706,-807.82,0.0006249,120]
[340818821,1729875044717,-500.0,0.00062491,120]
[340818822,1729875044727,-500.0,0.00062491,120]
[340818823,1729875044737,-500.0,0.00062491,120]
[340818824,1729875044747,-500.0,0.00062491,120]
[340818825,1729875044758,-500.0,0.00062491,120]
[340818826,1729875044768,-627.72,0.00062491,120]
[340818827,1729875044777,-5923.18362178,0.00062491,120]
[340818828,1729875044796,-150.0,0.00061918,60]
[340818829,1729875044806,-127.7523,0.00062491,120]
[340818836,1729875046115,-1449.06407822,0.00062491,120]
[340818837,1729875046125,-500.0,0.00062491,120]
[340818838,1729875046135,-20260.74,0.00062491,120]
[340818839,1729875046145,-975.23,0.00062491,120]
[340818840,1729875046156,-500.0,0.00062491,120]
[340818841,1729875046165,-500.0,0.00062491,120]
[340818842,1729875046175,-1651.15,0.00062491,120]
[340818843,1729875046189,-500.0,0.00062491,120]
[340818844,1729875046199,-593.66,0.00062491,21]
[340818845,1729875046208,-500.0,0.00062491,120]
[340818846,1729875046217,-500.0,0.00062491,120]
[340818847,1729875046227,-727.54,0.00062491,120]
[340818848,1729875046236,-500.0,0.00062491,120]
[340818849,1729875046245,-315.86689653,0.00062491,7]
[340818850,1729875046255,-151.0,0.00062491,120]
[340818851,1729875046264,-1583.09,0.00062491,120]
[340818852,1729875046273,-151.0,0.00062491,120]
[340818853,1729875046283,-500.0,0.00062491,120]
[340818854,1729875046292,-1509.95297952,0.00062491,120]
[340818855,1729875046312,-539.02702652,0.00060273,120]
[340818856,1729875046321,-952.03702048,0.00062491,120]
[340818857,1729875046332,-151.0,0.00062491,120]
[340818859,1729875046342,-151.0,0.00062491,120]
[340818861,1729875046351,-240.589147,0.00062491,120]
[340818863,1729875046361,-1716.01,0.00062492,120]
[340818865,1729875046370,-500.0,0.00062492,120]
[340818867,1729875046379,-589.43,0.00062492,120]
[340818869,1729875046389,-3440.33,0.00062492,120]
[340818871,1729875046398,-500.0,0.00062492,120]
[340818873,1729875046408,-840.51,0.00062492,120]
[340818875,1729875046417,-500.0,0.00062492,120]
[340818877,1729875046426,-685.91,0.00062492,120]
[340818879,1729875046436,-29553.2755853,0.00062493,3]
[340818881,1729875046445,-151.0,0.00062493,120]
[340818883,1729875046454,-151.0,0.00062493,120]
[340818885,1729875046463,-271.094118,0.00062493,120]
[340818887,1729875046473,-7779.8064894,0.00062493,3]
[340818889,1729875046482,-252.954783,0.00062493,120]
[340818891,1729875046491,-151.0,0.00062493,120]
[340818893,1729875046501,-151.0,0.00062493,120]
[340818894,1729875046510,-197.068179,0.00062493,120]
[340818897,1729875046520,-263.464404,0.00062493,120]
[340818898,1729875046529,-151.0,0.00062493,120]
[340818901,1729875046538,-151.0,0.00062493,120]
[340818903,1729875046548,-218.224746,0.00062493,120]
[340818905,1729875046558,-151.0,0.00062493,120]
[340818907,1729875046568,-500.0,0.00062493,120]
[340818909,1729875046577,-1003.8881734,0.00062493,3]
[340818911,1729875046586,-151.0,0.00062493,120]
[340818913,1729875046595,-151.0,0.00062493,120]
[340818914,1729875046604,-152.322504,0.00062493,120]
[340818916,1729875046614,-807.82,0.00062493,120]
[340818918,1729875046624,-151.0,0.00062493,120]
[340818920,1729875046633,-155.334306,0.00062493,120]
[340818922,1729875046642,-296.02513,0.00062493,120]
[340818924,1729875046652,-151.0,0.00062493,120]
[340818926,1729875046661,-6292.3012807,0.00062493,3]
[340818928,1729875046670,-151500.0557653,0.00062493,3]
[340818930,1729875046679,-150.0,0.00062493,120]
[340818932,1729875046688,-500.0,0.00062494,120]
[340818934,1729875046698,-868.83,0.00062494,120]
[340818936,1729875046707,-500.0,0.00062494,120]
[340818938,1729875046717,-500.0,0.00062494,120]
[340818940,1729875046727,-500.0,0.00062494,120]
[340818942,1729875046736,-500.0,0.00062494,120]
[340818944,1729875046746,-685.17,0.00062494,120]
[340818946,1729875046756,-500.0,0.00062494,120]
[340818948,1729875046766,-500.0,0.00062494,120]
[340818949,1729875046775,-500.0,0.00062494,120]
[340818950,1729875046784,-627.72,0.00062494,120]
[340818951,1729875046794,-500.0,0.00062494,120]
[340818952,1729875046803,-500.0,0.00062494,120]
[340818953,1729875046813,-500.0,0.00062494,55]
[340818954,1729875046822,-500.0,0.00062494,120]
[340818955,1729875046832,-555.94,0.00062494,120]
[340818956,1729875046842,-7500.0,0.00062494,120]
[340818957,1729875046851,-1193.81,0.00062494,120]
[340818958,1729875046860,-20260.74,0.00062494,120]
[340818959,1729875046870,-975.23,0.00062494,120]
[340818960,1729875046879,-549.13402542,0.00062494,120]
[340818961,1729875046889,-500.0,0.00062494,120]
[340818962,1729875046898,-637.71,0.00062494,120]
[340818963,1729875046907,-1651.15,0.00062494,120]
[340818964,1729875046917,-500.0,0.00062494,120]
[340818966,1729875046927,-500.0,0.00062494,120]
[340818967,1729875046939,-500.0,0.00062494,120]
[340818968,1729875046949,-593.66,0.00062494,21]
[340818969,1729875046958,-665.16,0.00062494,120]
[340818970,1729875046968,-500.0,0.00062494,120]
[340818971,1729875046977,-500.0,0.00062494,120]
[340818972,1729875046987,-662.81,0.00062494,120]
[340818973,1729875046996,-1058.15,0.00062494,120]
[340818974,1729875047005,-500.0,0.00062494,120]
[340818975,1729875047017,-500.0,0.00062494,120]
[340818976,1729875047027,-727.54,0.00062494,120]
[340818977,1729875047037,-593.32,0.00062494,120]
[340818978,1729875047046,-500.0,0.00062494,120]
[340818979,1729875047056,-500.0,0.00062494,120]
[340818980,1729875047069,-952.39,0.00062494,120]
[340818981,1729875047078,-500.0,0.00062494,2]
[340818982,1729875047088,-500.0,0.00062494,120]
[340818983,1729875047098,-500.0,0.00062494,120]
[340818984,1729875047107,-1172.63,0.00062494,4]
[340818985,1729875047117,-518.6,0.00062494,120]
[340818986,1729875047127,-1000.0,0.00062494,120]
[340818987,1729875047137,-1583.09,0.00062494,120]
[340818988,1729875047147,-500.0,0.00062494,120]
[340818989,1729875047158,-500.0,0.00062494,120]
[340818990,1729875047167,-500.0,0.00062494,120]
[340818991,1729875047176,-2461.99,0.00062494,120]
[340818992,1729875047190,-500.0,0.00062494,120]
[340818993,1729875047199,-684.79,0.00062494,120]
[340818994,1729875047209,-500.0,0.00062495,120]
[340818995,1729875047218,-784.19,0.00062495,120]
[340818996,1729875047228,-500.0,0.00062495,120]
[340818997,1729875047327,-500.0,0.00062495,120]
[340818998,1729875047338,-868.83,0.00062495,120]
[340818999,1729875047347,-500.00485332,0.00062495,120]
[340819000,1729875047357,-500.0,0.00062495,120]
[340819001,1729875047366,-685.17,0.00062495,120]
[340819002,1729875047375,-660.65,0.00062495,120]
[340819003,1729875047385,-500.0,0.00062495,120]
[340819004,1729875047395,-151.0,0.00062495,7]
[340819005,1729875047404,-152.367773,0.00062495,120]
[340819006,1729875047414,-151.0,0.00062495,120]
[340819007,1729875047424,-632.18,0.00062495,120]
[340819008,1729875047435,-1275.15,0.00062495,120]
[340819009,1729875047445,-500.0,0.00062495,120]
[340819010,1729875047455,-500.0,0.00062495,120]
[340819011,1729875047464,-500.0,0.00062495,55]
[340819012,1729875047473,-745.65,0.00062495,120]
[340819013,1729875047483,-500.0,0.00062495,120]
[340819014,1729875047492,-555.94,0.00062495,120]
[340819015,1729875047501,-662.82,0.00062495,120]
[340819016,1729875047511,-7500.0,0.00062495,120]
[340819017,1729875047521,-1193.81,0.00062495,120]
[340819018,1729875047530,-500.0,0.00062495,120]
[340819019,1729875047539,-1716.01,0.00062495,120]
[340819020,1729875047549,-20260.74,0.00062495,120]
[340819021,1729875047558,-975.23,0.00062495,120]
[340819022,1729875047567,-637.71,0.00062495,120]
[340819023,1729875047577,-500.0,0.00062495,120]
[340819024,1729875047586,-1651.15,0.00062495,120]
[340819025,1729875047596,-525.43467963,0.00062495,120]
[340819026,1729875047605,-500.0,0.00062495,120]
[340819027,1729875047614,-1218.69,0.00062495,120]
[340819028,1729875047624,-500.0,0.00062495,120]
[340819029,1729875047633,-500.0,0.00062495,120]
[340819030,1729875047643,-593.66,0.00062495,21]
[340819031,1729875047652,-589.43,0.00062495,120]
[340819032,1729875047662,-665.16,0.00062495,120]
[340819033,1729875047671,-500.0,0.00062495,120]
[340819034,1729875047681,-3440.33,0.00062495,120]
[340819035,1729875047692,-500.0,0.00062495,120]
[340819036,1729875047702,-662.81,0.00062495,120]
[340819037,1729875047711,-729.77,0.00062495,120]
[340819038,1729875047721,-500.0,0.00062495,120]
[340819039,1729875047730,-1058.15,0.00062495,120]
[340819040,1729875047741,-807.82,0.00062495,120]
[340819041,1729875047751,-500.0,0.00062495,120]
[340819042,1729875047761,-517.78689816,0.00062495,120]
[340819043,1729875047770,-727.54,0.00062495,120]
[340819044,1729875047779,-840.51,0.00062495,120]
[340819045,1729875047789,-593.32,0.00062495,120]
[340819046,1729875047798,-500.0,0.00062495,120]
[340819047,1729875047807,-500.0,0.00062495,120]
[340819048,1729875047816,-685.91,0.00062495,120]
[340819049,1729875047826,-500.0,0.00062495,120]
[340819050,1729875047836,-952.39,0.00062495,120]
[340819051,1729875047846,-500.0,0.00062495,2]
[340819052,1729875047855,-500.0,0.00062495,120]
[340819053,1729875047864,-500.0,0.00062495,120]
[340819054,1729875047873,-1172.63,0.00062495,4]
[340819055,1729875047882,-518.6,0.00062495,120]
[340819056,1729875047891,-1000.0,0.00062495,120]
[340819057,1729875047901,-1583.09,0.00062495,120]
[340819058,1729875047910,-500.0,0.00062495,120]
[340819059,1729875047919,-500.0,0.00062495,120]
[340819060,1729875047927,-500.0,0.00062495,120]
[340819061,1729875047937,-500.0,0.00062495,120]
[340819062,1729875047947,-684.79,0.00062495,120]
[340819063,1729875047956,-151.0,0.00062495,120]
[340819064,1729875047965,-151.0,0.00062495,120]
[340819065,1729875047974,-14615.72211574,0.00062496,60]
[340819066,1729875047983,-27552.80462668,0.00062496,64]
[340819067,1729875047996,-115024.74364308,0.00062496,64]
[340819068,1729875048005,-100125.65947567,0.00062496,3]
[340819069,1729875048014,-43571.45723389,0.00062496,3]
[340819070,1729875048026,-7383.79919372,0.00062496,3]
[340819071,1729875067752,990.18119224,0.00043033,120]
[340819089,1729876165192,164.18,0.00015342,2]
[340819097,1729876232104,-283.97,0.000523,2]
[340819099,1729876232114,-251.03035225,0.00054694,2]
[340819100,1729876232124,-3396.34256661,0.00054794,2]
[340819102,1729876232133,-7500.0,0.00054794,120]
[340819104,1729876232143,-7500.0,0.00054794,120]
[340819106,1729876232153,-7500.0,0.00054794,120]
[340819107,1729876232163,-7500.0,0.00054794,120]
[340819109,1729876232172,-7500.0,0.00054794,120]
[340819111,1729876232182,-7500.0,0.00054794,120]
[340819112,1729876232192,-7500.0,0.00054794,120]
[340819114,1729876232201,-7500.0,0.00054794,120]
[340819115,1729876232211,-7500.0,0.00054794,120]
[340819117,1729876232220,-7500.0,0.00054794,120]
[340819119,1729876232229,-7500.0,0.00054794,120]
[340819120,1729876232239,-7500.0,0.00054794,120]
[340819122,1729876232248,-5129.28713915,0.00054794,120]
[340819124,1729876232258,-342.18,0.0005887,2]
[340819125,1729876232267,-499.99,0.00060182,30]
[340819127,1729876232277,-821.62,0.00060182,2]
[340819128,1729876232286,-1388.39,0.00060182,2]
[340819129,1729876232295,-154.32496774,0.00060273,120]
[340819130,1729876232305,-500.0,0.00060273,120]
[340819131,1729876232314,-500.0,0.00060273,2]
[340819132,1729876232323,-500.0,0.00060273,2]
[340819133,1729876232333,-500.0,0.00060273,2]
[340819134,1729876232343,-2051.66,0.00060273,120]
[340819135,1729876232352,-500.0,0.00060273,120]
[340819136,1729876232361,-500.0,0.00060273,120]
[340819137,1729876232371,-500.0,0.00060273,120]
[340819138,1729876232381,-500.0,0.00060273,120]
[340819139,1729876232390,-500.0,0.00060273,120]
[340819140,1729876232399,-956.37,0.00060273,120]
[340819141,1729876232409,-500.00000001,0.00060273,120]
[340819142,1729876232419,-559.24,0.00060273,120]
[340819143,1729876232429,-500.0,0.00060273,120]
[340819144,1729876232438,-1177.8,0.00060273,120]
[340819145,1729876232447,-1000.0,0.00060273,120]
[340819146,1729876232457,-500.0,0.00060273,120]
[340819147,1729876232467,-699.36,0.00060273,120]
[340819148,1729876232477,-500.0,0.00060657,120]
[340819149,1729876232486,-250.0,0.00060665,120]
[340819150,1729876232495,-500.0,0.00060696,120]
[340819151,1729876232505,-11350.81153981,0.000607,120]
[340819152,1729876232514,-1000.0,0.00060727,120]
[340819153,1729876232523,-250.0,0.00060933,120]
[340819154,1729876232534,-500.0,0.00061088,120]
[340819155,1729876232543,-717.99,0.00061096,60]
[340819156,1729876232552,-150.0,0.00061096,60]
[340819157,1729876232562,-297.94,0.00061096,60]
[340819158,1729876232571,-731.37,0.00061096,60]
[340819159,1729876232580,-150.0,0.00061096,60]
[340819160,1729876232589,-150.0,0.00061096,60]
[340819161,1729876232599,-150.0,0.00061096,60]
[340819162,1729876232608,-150.0,0.00061096,60]
[340819163,1729876232618,-150.0,0.00061096,60]
[340819164,1729876232628,-150.0,0.00061096,60]
[340819165,1729876232637,-150.0,0.00061096,60]
[340819166,1729876232646,-150.0,0.00061096,60]
[340819167,1729876232655,-150.0,0.00061096,60]
[340819168,1729876232665,-342.18,0.00061134,2]
[340819169,1729876232674,-500.0,0.00061141,120]
[340819170,1729876232684,-500.0,0.00061199,120]
[340819171,1729876232693,-500.0,0.00061414,120]
[340819172,1729876232703,-2051.66,0.00061498,120]
[340819173,1729876232712,-500.0,0.00061498,120]
[340819174,1729876232722,-500.0,0.00061498,120]
[340819175,1729876232731,-956.37,0.00061498,120]
[340819176,1729876232740,-559.24,0.00061498,120]
[340819177,1729876232749,-500.0,0.00061498,120]
[340819178,1729876232759,-1177.8,0.00061498,120]
[340819179,1729876232769,-699.36,0.00061498,120]
[340819180,1729876232778,-610.82318672,0.00061499,120]
[340819181,1729876232787,-500.0,0.00061499,120]
[340819182,1729876232797,-500.0,0.00061499,120]
[340819183,1729876232806,-500.0,0.00061499,120]
[340819184,1729876232816,-500.0,0.00061499,120]
[340819185,1729876232825,-500.0,0.00061568,120]
[340819186,1729876232835,-200.0,0.000618,22]
[340819187,1729876232844,-500.0,0.000619,22]
[340819188,1729876232853,-500.0,0.00061988,2]
[340819189,1729876232862,-500.0,0.00061988,120]
[340819190,1729876232872,-2051.66,0.00061989,120]
[340819191,1729876232882,-500.0,0.00061989,120]
[340819192,1729876232891,-500.0,0.00061989,120]
[340819193,1729876232901,-956.37,0.00061989,120]
[340819194,1729876232911,-559.24,0.00061989,120]
[340819195,1729876232921,-551.43768943,0.00061989,120]
[340819196,1729876232930,-1177.8,0.00061989,120]
[340819197,1729876232940,-699.36,0.00061989,120]
[340819198,1729876232949,-500.0,0.00062057,120]
[340819199,1729876232959,-500.0,0.00062075,120]
[340819200,1729876232968,-500.0,0.00062134,120]
[340819201,1729876232978,-500.0,0.0006216,120]
[340819202,1729876232987,-1000.0,0.00062187,2]
[340819203,1729876232996,-1000.0,0.00062187,2]
[340819204,1729876233005,-1000.0,0.00062187,2]
[340819205,1729876233015,-1000.0,0.00062187,2]
[340819206,1729876233024,-1000.0,0.00062187,2]
[340819207,1729876233034,-1000.0,0.00062187,2]
[340819208,1729876233044,-1000.0,0.00062187,2]
[340819209,1729876233054,-1000.0,0.00062187,2]
[340819210,1729876233064,-1000.0,0.00062187,2]
[340819211,1729876233074,-1000.0,0.00062187,2]
[340819212,1729876233083,-1000.0,0.00062187,2]
[340819213,1729876233093,-1000.0,0.00062187,2]
[340819214,1729876233102,-1000.0,0.00062187,2]
[340819215,1729876233112,-1000.0,0.00062187,2]
[340819216,1729876233122,-1000.0,0.00062187,2]
[340819217,1729876233131,-1000.0,0.00062187,2]
[340819218,1729876233141,-1000.0,0.00062187,2]
[340819219,1729876233151,-1000.0,0.00062187,2]
[340819220,1729876233162,-1000.0,0.00062187,2]
[340819221,1729876233172,-193.6749,0.00062187,2]
[340819222,1729876233182,-938.55701394,0.000622,15]
[340819223,1729876233192,-11146.4,0.000623,120]
[340819224,1729876233202,-690.24774,0.000623,2]
[340819227,1729876233212,-1000.0,0.0006238,30]
[340819229,1729876233222,-309.27192219,0.00062387,2]
[340819231,1729876233232,-500.0,0.00062389,120]
[340819233,1729876233242,-500.0,0.00062389,120]
[340819235,1729876233252,-500.0,0.00062389,120]
[340819236,1729876233262,-500.0,0.00062389,120]
[340819238,1729876233272,-288.5635,0.00062393,2]
[340819241,1729876233282,-505.0087,0.00062399,120]
[340819243,1729876233292,-21555.6483,0.00062399,120]
[340819245,1729876233302,-182.92417128,0.000624,42]
[340819247,1729876233312,-244.63609119,0.00062403,2]
[340819249,1729876233334,-1218.150185,0.00062403,2]
[340819250,1729876233349,-6017.59615662,0.00062403,2]
[340819251,1729876233359,-2051.66,0.00062465,120]
[340819252,1729876233369,-500.0,0.00062465,120]
[340819253,1729876233379,-500.0,0.00062465,120]
[340819254,1729876233389,-956.37,0.00062465,120]
[340819255,1729876233399,-559.24,0.00062465,120]
[340819256,1729876233409,-1177.8,0.00062465,120]
[340819257,1729876233419,-699.36,0.00062465,120]
[340819258,1729876233429,-9387.17952966,0.00062479,14]
[340819259,1729876233439,-500.0,0.0006248,120]
[340819260,1729876233449,-500.0,0.0006248,120]
[340819261,1729876233459,-17185.94,0.0006248,120]
[340819262,1729876233469,-500.0,0.0006248,120]
[340819263,1729876233479,-812.69,0.0006248,120]
[340819264,1729876233488,-500.0,0.0006248,120]
[340819265,1729876233497,-500.0,0.0006248,120]
[340819266,1729876233506,-500.0,0.0006248,21]
[340819267,1729876233516,-217.77461933,0.0006248,120]
[340819268,1729876233527,-3010.28,0.0006248,120]
[340819269,1729876233537,-500.0,0.0006248,120]
[340819270,1729876233547,-1375.96,0.0006248,120]
[340819271,1729876233556,-500.0,0.0006248,120]
[340819272,1729876233566,-500.0,0.0006248,120]
[340819273,1729876233575,-500.0,0.0006248,120]
[340819274,1729876233584,-500.0,0.0006248,120]
[340819275,1729876233594,-500.0,0.0006248,120]
[340819276,1729876233604,-500.0,0.0006248,120]
[340819277,1729876233613,-735.45,0.0006248,120]
[340819278,1729876233622,-706.84,0.0006248,120]
[340819279,1729876233632,-500.0,0.0006248,120]
[340819280,1729876233641,-500.0,0.0006248,120]
[340819281,1729876233651,-606.29,0.0006248,120]
[340819282,1729876233660,-600.17,0.0006248,120]
[340819283,1729876233670,-500.0,0.0006248,120]
[340819284,1729876233680,-196.65165031,0.0006248,120]
[340819285,1729876233690,-500.0,0.0006248,120]
[340819286,1729876233699,-500.0,0.0006248,120]
[340819287,1729876233709,-500.0,0.0006248,120]
[340819288,1729876233718,-500.0,0.0006248,120]
[340819289,1729876233728,-500.0,0.0006248,120]
[340819290,1729876233738,-1319.24,0.0006248,120]
[340819291,1729876233748,-89178.2055318,0.0006248,14]
[340819292,1729876233757,-356.60410168,0.0006248,7]
[340819293,1729876233767,-9387.17952966,0.00062481,14]
[340819294,1729876233776,-23467.9488242,0.00062482,14]
[340819295,1729876233786,-9387.17952966,0.00062482,14]
[340819296,1729876233795,-9387.17952966,0.00062483,14]
[340819297,1729876233805,-6092.59332951,0.00062483,13]
[340819298,1729876233814,-4693.58976483,0.00062484,14]
[340819299,1729876233824,-6092.59332951,0.00062484,13]
[340819300,1729876233834,-500.0,0.00062487,120]
[340819301,1729876233843,-500.0,0.00062487,120]
[340819302,1729876233853,-500.0,0.00062487,120]
[340819303,1729876233862,-367.07071098,0.00062487,120]
[340819304,1729876233872,-500.0,0.00062487,120]
[340819305,1729876233882,-724.03,0.00062487,120]
[340819306,1729876233892,-500.0,0.00062487,120]
[340819307,1729876233902,-500.0,0.00062487,120]
[340819308,1729876233912,-431.40570763,0.00062487,120]
[340819309,1729876233921,-500.0,0.00062487,120]
[340819310,1729876233930,-500.0,0.00062487,120]
[340819311,1729876233939,-500.0,0.00062487,120]
[340819312,1729876233949,-261.10682434,0.00062487,120]
[340819313,1729876233959,-500.0,0.00062487,120]
[340819314,1729876233969,-500.0,0.00062487,120]
[340819315,1729876233978,-500.0,0.00062487,120]
[340819316,1729876233988,-570.97,0.00062487,120]
[340819317,1729876233998,-500.0,0.00062487,120]
[340819318,1729876234008,-500.0,0.00062487,120]
[340819319,1729876234018,-500.0,0.00062487,120]
[340819320,1729876234029,-500.0,0.00062487,120]
[340819321,1729876234038,-504.2278568,0.00062487,120]
[340819322,1729876234048,-500.0,0.00062487,120]
[340819323,1729876234057,-500.0,0.00062487,120]
[340819324,1729876234067,-500.0,0.00062487,120]
[340819325,1729876234076,-500.0,0.00062487,120]
[340819326,1729876234085,-549.25,0.00062487,120]
[340819327,1729876234094,-500.0,0.00062487,2]
[340819328,1729876234103,-514.89323033,0.00062487,120]
[340819329,1729876234113,-500.0,0.00062487,120]
[340819330,1729876234122,-500.0,0.00062487,55]
[340819331,1729876234133,-500.0,0.00062487,120]
[340819332,1729876234142,-500.0,0.00062487,120]
[340819333,1729876234151,-500.0,0.00062487,120]
[340819334,1729876234160,-500.0,0.00062487,120]
[340819335,1729876234170,-500.0,0.00062487,120]
[340819336,1729876234179,-500.0,0.00062487,120]
[340819337,1729876234189,-994.84,0.00062487,120]
[340819338,1729876234198,-500.0,0.00062487,120]
[340819339,1729876234207,-692.7,0.00062487,120]
[340819340,1729876234216,-558.0,0.00062487,120]
[340819341,1729876234225,-500.0,0.00062487,120]
[340819342,1729876234234,-500.0,0.00062487,120]
[340819343,1729876234244,-337.37880725,0.00062487,120]
[340819344,1729876234253,-500.0,0.00062487,120]
[340819345,1729876234263,-582.02,0.00062487,120]
[340819346,1729876234272,-500.0,0.00062487,120]
[340819347,1729876234281,-498.91517,0.00062487,120]
[340819348,1729876234291,-579.96,0.00062487,120]
[340819349,1729876234300,-500.0,0.00062487,120]
[340819350,1729876234310,-925.88,0.00062487,120]
[340819351,1729876234320,-500.0,0.00062487,120]
[340819352,1729876234329,-500.0,0.00062487,120]
[340819353,1729876234338,-500.0,0.00062487,120]
[340819354,1729876234347,-221.18191303,0.00062487,120]
[340819355,1729876234356,-519.16,0.00062487,120]
[340819356,1729876234366,-500.0,0.00062487,120]
[340819357,1729876234375,-833.34,0.00062487,120]
[340819358,1729876234478,-500.0,0.00062487,120]
[340819359,1729876234488,-500.0,0.00062487,120]
[340819360,1729876234498,-500.0,0.00062487,120]
[340819361,1729876234508,-500.0,0.00062487,120]
[340819362,1729876234518,-402.69315807,0.00062487,120]
[340819363,1729876234528,-1000.0,0.00062487,120]
[340819364,1729876234539,-1026.05,0.00062487,4]
[340819365,1729876234549,-500.0,0.00062487,7]
[340819366,1729876234558,-500.0,0.00062487,120]
[340819367,1729876234567,-599.19,0.00062487,120]
[340819368,1729876234577,-500.0,0.00062487,120]
[340819369,1729876234587,-500.0,0.00062488,2]
[340819370,1729876234596,-475.41855619,0.00062488,120]
[340819376,1729876238256,-24.58144381,0.00062488,120]
[340819377,1729876238266,-1430.01,0.00062488,120]
[340819378,1729876238276,-500.0,0.00062488,120]
[340819379,1729876238286,-2826.61264847,0.00062488,120]